fUSD/lending_fUSD_20250215
["ID","MTS","AMOUNT","RATE_DAILY","PERIOD"]
[353145258,1739611845717,-500.0,0.00010958,2]
[353145259,1739611845729,-500.0,0.00010958,2]
[353145260,1739611845739,-500.0,0.00010958,2]
[353145261,1739611845748,-500.0,0.00010958,2]
[353145262,1739611845758,-500.0,0.00010958,2]
[353145263,1739611845768,-500.0,0.00010958,2]
[353145264,1739611845777,-367.11,0.00010958,2]
[353145265,1739611845787,-500.0,0.00010958,2]
[353145266,1739611845796,-500.0,0.00010958,2]
[353145267,1739611845805,-500.0,0.00010958,2]
[353145268,1739611845815,-572.12,0.00010958,2]
[353145269,1739611845825,-500.0,0.00010958,2]
[353145270,1739611845834,-501.7740796,0.00010958,2]
[353145271,1739611845844,-500.0,0.00010958,2]
[353145272,1739611845853,-500.0,0.00010958,2]
[353145273,1739611845863,-569.62,0.00010958,2]
[353145274,1739611845873,-500.0,0.00010958,2]
[353145275,1739611845883,-240.26496552,0.00010958,2]
[353145276,1739611845892,-500.0,0.00010958,2]
[353145277,1739611845902,-500.0,0.00010958,2]
[353145278,1739611845912,-500.0,0.00010958,2]
[353145279,1739611845922,-500.0,0.00010958,2]
[353145280,1739611845931,-500.0,0.00010958,2]
[353145281,1739611845941,-501.19465345,0.00010958,2]
[353145282,1739611845951,-500.0,0.00010958,2]
[353145283,1739611845960,-500.0,0.00010958,2]
[353145284,1739611845970,-500.0,0.00010958,2]
[353145285,1739611845979,-500.0,0.00010958,2]
[353145286,1739611845989,-500.0,0.00010958,2]
[353145287,1739611845999,-500.0,0.00010958,2]
[353145288,1739611846008,-500.0,0.00010958,2]
[353145290,1739611846018,-628.27,0.00010958,2]
[353145292,1739611846028,-513.8007078,0.00010958,2]
[353145294,1739611846038,-500.0,0.00010958,2]
[353145296,1739611846047,-500.0,0.00010958,2]
[353145297,1739611846058,-500.0,0.00010958,2]
[353145298,1739611846067,-500.0,0.00010958,2]
[353145299,1739611846078,-500.0,0.00010958,2]
[353145300,1739611846088,-500.0,0.00010958,2]
[353145301,1739611846098,-500.0,0.00010958,2]
[353145302,1739611846107,-619.35,0.00010958,2]
[353145303,1739611846117,-500.0,0.00010958,2]
[353145304,1739611846127,-500.0,0.00010958,2]
[353145305,1739611846138,-572.09,0.00010958,2]
[353145306,1739611846147,-682.02,0.00010958,2]
[353145307,1739611846156,-500.0,0.00010958,2]
[353145308,1739611846166,-500.0,0.00010958,2]
[353145309,1739611846175,-500.0,0.00010958,2]
[353145310,1739611846184,-500.0,0.00010958,2]
[353145311,1739611846193,-500.0,0.00010958,2]
[353145312,1739611846202,-500.0,0.00010958,2]
[353145313,1739611846211,-500.0,0.00010958,2]
[353145314,1739611846221,-500.0,0.00010958,2]
[353145315,1739611846231,-812.88,0.00010958,2]
[353145316,1739611846240,-500.0,0.00010958,2]
[353145317,1739611846249,-501.850428,0.00010958,2]
[353145318,1739611846259,-500.0,0.00010958,2]
[353145319,1739611846268,-500.0,0.00010958,2]
[353145320,1739611846278,-500.0,0.00010958,2]
[353145321,1739611846288,-251.06707228,0.00010958,2]
[353145322,1739611846297,-500.0,0.00010958,2]
[353145323,1739611846307,-500.0,0.00010958,2]
[353145324,1739611846317,-500.0,0.00010958,2]
[353145325,1739611846327,-399.67448682,0.00010958,2]
[353145326,1739611846337,-500.0,0.00010958,2]
[353145327,1739611846353,-500.0,0.00010958,2]
[353145328,1739611846367,-500.0,0.00010958,2]
[353145329,1739611846377,-500.0,0.00010958,2]
[353145330,1739611846386,-500.0,0.00010958,2]
[353145331,1739611846396,-672.16,0.00010958,2]
[353145332,1739611846405,-500.0,0.00010958,2]
[353145333,1739611846415,-500.0,0.00010958,2]
[353145334,1739611846425,-500.0,0.00010958,2]
[353145335,1739611846436,-500.0,0.00010958,2]
[353145336,1739611846446,-500.0,0.00010958,2]
[353145337,1739611846455,-500.0,0.00010958,2]
[353145338,1739611846465,-500.0,0.00010958,2]
[353145339,1739611846475,-500.0,0.00010958,2]
[353145340,1739611846485,-500.0,0.00010958,2]
[353145341,1739611846495,-500.0,0.00010958,2]
[353145342,1739611846504,-500.0,0.00010958,2]
[353145343,1739611846514,-500.0,0.00010958,2]
[353145344,1739611846523,-500.0,0.00010958,2]
[353145345,1739611846533,-500.0,0.00010958,2]
[353145346,1739611846543,-500.0,0.00010958,2]
[353145347,1739611846553,-500.0,0.00010958,2]
[353145348,1739611846563,-557.33,0.00010958,2]
[353145349,1739611846572,-500.0,0.00010958,2]
[353145350,1739611846586,-500.0,0.00010958,2]
[353145351,1739611846596,-500.0,0.00010958,2]
[353145352,1739611846605,-500.0,0.00010958,2]
[353145353,1739611846615,-575.78,0.00010958,2]
[353145354,1739611846626,-500.0,0.00010958,2]
[353145355,1739611846635,-500.0,0.00010958,2]
[353145356,1739611846645,-611.5,0.00010958,2]
[353145357,1739611846656,-615.98,0.00010958,2]
[353145358,1739611846666,-500.0,0.00010958,2]
[353145359,1739611846676,-500.0,0.00010958,2]
[353145360,1739611846686,-500.0,0.00010958,2]
[353145361,1739611846696,-577.5,0.00010958,2]
[353145362,1739611846706,-500.0,0.00010958,2]
[353145363,1739611846715,-500.0,0.00010958,2]
[353145364,1739611846725,-500.0,0.00010958,2]
[353145365,1739611846735,-500.0,0.00010958,2]
[353145366,1739611846745,-500.0,0.00010958,2]
[353145367,1739611846755,-500.0,0.00010958,2]
[353145368,1739611846765,-500.0,0.00010958,2]
[353145369,1739611846775,-500.0,0.00010958,2]
[353145370,1739611846784,-500.0,0.00010958,2]
[353145371,1739611846794,-641.08,0.00010958,2]
[353145372,1739611846804,-500.0,0.00010958,2]
[353145373,1739611846815,-513.42851775,0.00010958,2]
[353145374,1739611846824,-615.96,0.00010958,2]
[353145375,1739611846834,-500.0,0.00010958,2]
[353145376,1739611846844,-500.0,0.00010958,2]
[353145377,1739611846854,-557.53,0.00010958,2]
[353145378,1739611846864,-500.0,0.00010958,2]
[353145379,1739611846874,-500.0,0.00010958,2]
[353145380,1739611846883,-500.0,0.00010958,2]
[353145381,1739611846893,-500.0,0.00010958,2]
[353145382,1739611846903,-500.0,0.00010958,2]
[353145383,1739611846912,-500.0,0.00010958,2]
[353145384,1739611846921,-500.0,0.00010958,2]
[353145385,1739611846931,-500.0,0.00010958,2]
[353145386,1739611846940,-500.0,0.00010958,2]
[353145387,1739611846951,-500.0,0.00010958,2]
[353145388,1739611846960,-691.81,0.00010958,2]
[353145389,1739611846970,-500.0,0.00010958,2]
[353145390,1739611846980,-410.69322661,0.00010958,2]
[353145391,1739611846990,-500.0,0.00010958,2]
[353145392,1739611846999,-4000.0,0.00010958,2]
[353145393,1739611847009,-500.0,0.00010958,2]
[353145394,1739611847019,-500.0,0.00010958,2]
[353145395,1739611847029,-500.0,0.00010958,2]
[353145396,1739611847039,-500.0,0.00010958,2]
[353145397,1739611847049,-500.0,0.00010958,2]
[353145398,1739611847059,-500.0,0.00010958,2]
[353145399,1739611847068,-500.0,0.00010958,2]
[353145400,1739611847079,-778.06,0.00010958,2]
[353145401,1739611847089,-500.0,0.00010958,2]
[353145402,1739611847098,-500.0,0.00010958,2]
[353145403,1739611847108,-507.4633239,0.00010958,2]
[353145404,1739611847118,-648.19,0.00010958,2]
[353145405,1739611847127,-500.0,0.00010958,2]
[353145406,1739611847137,-536.79,0.00010958,2]
[353145407,1739611847148,-570.53537173,0.00010958,2]
[353145408,1739611847158,-638.9,0.00010958,2]
[353145409,1739611847168,-518.8145441,0.00010958,2]
[353145410,1739611847177,-500.0,0.00010958,2]
[353145411,1739611847187,-500.0,0.00010958,2]
[353145412,1739611847196,-500.0,0.00010958,2]
[353145413,1739611847206,-500.0,0.00010958,2]
[353145414,1739611847218,-1073.44,0.00010958,2]
[353145415,1739611847229,-872.98,0.00010958,2]
[353145416,1739611847238,-500.0,0.00010958,2]
[353145417,1739611847248,-676.69,0.00010958,2]
[353145418,1739611847258,-500.0,0.00010958,2]
[353145419,1739611847268,-568.45,0.00010958,2]
[353145420,1739611847277,-500.0,0.00010958,2]
[353145421,1739611847287,-1057.92,0.00010958,2]
[353145422,1739611847296,-500.0,0.00010958,2]
[353145423,1739611847306,-500.0,0.00010958,2]
[353145424,1739611847316,-500.0,0.00010958,2]
[353145425,1739611847326,-500.0,0.00010958,2]
[353145426,1739611847336,-1086.69,0.00010958,2]
[353145427,1739611847346,-829.19,0.00010958,2]
[353145428,1739611847356,-725.47,0.00010958,2]
[353145429,1739611847366,-501.04662831,0.00010958,2]
[353145430,1739611847376,-725.47,0.00010958,2]
[353145431,1739611847386,-500.0,0.00010958,2]
[353145432,1739611847396,-793.24,0.00010958,2]
[353145433,1739611847406,-500.0,0.00010958,2]
[353145434,1739611847415,-615.24,0.00010958,2]
[353145435,1739611847425,-783.17,0.00010958,2]
[353145436,1739611847435,-500.0,0.00010958,2]
[353145437,1739611847444,-241.39710075,0.00010958,2]
[353145438,1739611847454,-507.47859958,0.00010958,2]
[353145439,1739611847464,-500.0,0.00010958,2]
[353145440,1739611847474,-500.0,0.00010958,2]
[353145441,1739611847484,-991.47,0.00010958,2]
[353145442,1739611847494,-1433.75,0.00010958,2]
[353145443,1739611847504,-971.58,0.00010958,2]
[353145444,1739611847514,-789.55,0.00010958,2]
[353145445,1739611847525,-552.21,0.00010958,2]
[353145446,1739611847535,-500.0,0.00010958,2]
[353145447,1739611847546,-603.31,0.00010958,2]
[353145448,1739611847556,-1175.04,0.00010958,2]
[353145449,1739611847565,-500.0,0.00010958,2]
[353145450,1739611847575,-500.0,0.00010958,2]
[353145451,1739611847586,-500.0,0.00010958,2]
[353145452,1739611847596,-500.0,0.00010958,2]
[353145453,1739611847605,-500.0,0.00010958,2]
[353145454,1739611847614,-731.56,0.00010958,2]
[353145455,1739611847623,-500.0,0.00010958,2]
[353145456,1739611847634,-2056.44,0.00010958,2]
[353145457,1739611847644,-500.0,0.00010958,2]
[353145458,1739611847654,-529.5,0.00010958,2]
[353145459,1739611847664,-703.41,0.00010958,2]
[353145460,1739611847673,-500.0,0.00010958,2]
[353145461,1739611847682,-500.0,0.00010958,2]
[353145462,1739611847692,-500.0,0.00010958,2]
[353145463,1739611847702,-500.0,0.00010958,2]
[353145464,1739611847711,-895.05,0.00010958,2]
[353145465,1739611847720,-717.51,0.00010958,2]
[353145466,1739611847729,-610.86,0.00010958,2]
[353145467,1739611847739,-1754.36,0.00010958,2]
[353145468,1739611847748,-500.0,0.00010958,2]
[353145469,1739611847757,-743.87,0.00010958,2]
[353145470,1739611847767,-500.0,0.00010958,2]
[353145471,1739611847776,-1009.67,0.00010958,2]
[353145472,1739611848011,-2982.91,0.00010958,2]
[353145473,1739611848020,-500.0,0.00010958,2]
[353145474,1739611848030,-995.96,0.00010958,2]
[353145475,1739611848040,-579.87,0.00010958,2]
[353145476,1739611848050,-500.0,0.00010958,2]
[353145477,1739611848061,-500.0,0.00010958,2]
[353145478,1739611848070,-500.0,0.00010958,2]
[353145479,1739611848081,-1159.35,0.00010958,2]
[353145480,1739611848091,-500.0,0.00010958,2]
[353145481,1739611848100,-500.0,0.00010958,2]
[353145482,1739611848110,-500.0,0.00010958,2]
[353145483,1739611848120,-581.33,0.00010958,2]
[353145484,1739611848131,-779.91,0.00010958,2]
[353145485,1739611848141,-500.0,0.00010958,2]
[353145486,1739611848151,-735.73,0.00010958,2]
[353145487,1739611848160,-500.0,0.00010958,2]
[353145488,1739611848170,-1222.91,0.00010958,2]
[353145489,1739611848180,-500.0,0.00010958,2]
[353145490,1739611848190,-500.0,0.00010958,2]
[353145491,1739611848200,-1141.54,0.00010958,2]
[353145492,1739611848210,-500.0,0.00010958,2]
[353145493,1739611848219,-657.56,0.00010958,2]
[353145494,1739611848230,-921.4,0.00010958,2]
[353145495,1739611848240,-500.0,0.00010958,2]
[353145496,1739611848250,-802.93,0.00010958,2]
[353145497,1739611848261,-500.0,0.00010958,2]
[353145498,1739611848271,-500.0,0.00010958,2]
[353145499,1739611848281,-560.26,0.00010958,2]
[353145500,1739611848290,-646.72,0.00010958,2]
[353145501,1739611848300,-1756.73,0.00010958,2]
[353145502,1739611848309,-500.0,0.00010958,2]
[353145503,1739611848318,-2263.15,0.00010958,2]
[353145504,1739611848328,-630.63,0.00010958,2]
[353145505,1739611848337,-645.55,0.00010958,2]
[353145506,1739611848346,-500.0,0.00010958,2]
[353145507,1739611848355,-500.0,0.00010958,2]
[353145508,1739611848365,-904.92,0.00010958,2]
[353145509,1739611848374,-500.0,0.00010958,2]
[353145510,1739611848383,-500.0,0.00010958,2]
[353145511,1739611848392,-500.0,0.00010958,2]
[353145512,1739611848402,-864.22,0.00010958,2]
[353145513,1739611848411,-500.0,0.00010958,2]
[353145514,1739611848421,-565.75,0.00010958,2]
[353145515,1739611848430,-830.74,0.00010958,2]
[353145516,1739611848439,-500.0,0.00010958,2]
[353145517,1739611848449,-500.0,0.00010958,2]
[353145518,1739611848459,-500.0,0.00010958,2]
[353145519,1739611848469,-769.25,0.00010958,2]
[353145520,1739611848479,-897.43,0.00010958,2]
[353145521,1739611848489,-1011.81,0.00010958,2]
[353145522,1739611848499,-500.0,0.00010958,2]
[353145523,1739611848508,-500.0,0.00010958,2]
[353145524,1739611848520,-424.52987012,0.00010958,2]
[353145525,1739611848529,-1292.79,0.00010958,2]
[353145526,1739611848539,-500.0,0.00010958,2]
[353145527,1739611848549,-500.0,0.00010958,2]
[353145528,1739611848559,-1639.04,0.00010958,2]
[353145529,1739611848569,-500.0,0.00010958,2]
[353145530,1739611848580,-500.0,0.00010958,2]
[353145531,1739611848593,-695.46,0.00010958,2]
[353145532,1739611848603,-500.0,0.00010958,2]
[353145533,1739611848613,-500.0,0.00010958,2]
[353145534,1739611848623,-746.86,0.00010958,2]
[353145535,1739611848633,-850.54,0.00010958,2]
[353145536,1739611848643,-500.0,0.00010958,2]
[353145537,1739611848653,-500.0,0.00010958,2]
[353145538,1739611848663,-734.88,0.00010958,2]
[353145539,1739611848673,-612.62,0.00010958,2]
[353145540,1739611848682,-233.84953308,0.00010958,2]
[353145541,1739611848692,-500.0,0.00010958,2]
[353145542,1739611848702,-1135.06,0.00010958,2]
[353145543,1739611848712,-834.87,0.00010958,2]
[353145544,1739611848722,-500.0,0.00010958,2]
[353145545,1739611848733,-505.21,0.00010958,2]
[353145546,1739611848744,-500.0,0.00010958,2]
[353145547,1739611848754,-500.0,0.00010958,2]
[353145548,1739611848764,-500.0,0.00010958,2]
[353145549,1739611848774,-500.0,0.00010958,2]
[353145550,1739611848785,-622.66,0.00010958,2]
[353145551,1739611848795,-824.06,0.00010958,2]
[353145552,1739611848804,-500.0,0.00010958,2]
[353145553,1739611848814,-500.0,0.00010958,2]
[353145554,1739611848824,-500.0,0.00010958,2]
[353145555,1739611848834,-500.0,0.00010958,2]
[353145556,1739611848844,-500.0,0.00010958,2]
[353145557,1739611848854,-1491.64,0.00010958,2]
[353145558,1739611848865,-500.0,0.00010958,2]
[353145559,1739611848875,-500.0,0.00010958,2]
[353145560,1739611848886,-587.54,0.00010958,2]
[353145561,1739611848897,-500.0,0.00010958,2]
[353145562,1739611848908,-510.9,0.00010958,2]
[353145563,1739611848919,-500.0,0.00010958,2]
[353145564,1739611848929,-500.0,0.00010958,2]
[353145565,1739611848940,-1098.7,0.00010958,2]
[353145566,1739611848951,-500.0,0.00010958,2]
[353145567,1739611848963,-500.0,0.00010958,2]
[353145568,1739611848974,-500.0,0.00010958,2]
[353145569,1739611848992,-879.19,0.00010958,2]
[353145570,1739611849003,-500.0,0.00010958,2]
[353145571,1739611849014,-500.0,0.00010958,2]
[353145572,1739611849024,-697.57,0.00010958,2]
[353145573,1739611849035,-845.88,0.00010958,2]
[353145574,1739611849045,-500.0,0.00010958,2]
[353145575,1739611849055,-500.0,0.00010958,2]
[353145576,1739611849065,-500.0,0.00010958,2]
[353145577,1739611849075,-500.0,0.00010958,2]
[353145578,1739611849084,-500.0,0.00010958,2]
[353145579,1739611849094,-927.84,0.00010958,2]
[353145580,1739611849106,-1000.0,0.00010958,2]
[353145581,1739611849116,-528.13662805,0.00010958,2]
[353145582,1739611849126,-500.0,0.00010958,2]
[353145583,1739611849136,-500.0,0.00010958,2]
[353145584,1739611849147,-500.0,0.00010958,2]
[353145585,1739611849158,-500.0,0.00010958,2]
[353145586,1739611849168,-910.15,0.00010958,2]
[353145587,1739611849179,-1188.23,0.00010958,2]
[353145588,1739611849190,-677.74,0.00010958,2]
[353145589,1739611849201,-500.0,0.00010958,2]
[353145590,1739611849211,-1506.85,0.00010958,2]
[353145591,1739611849221,-500.0,0.00010958,2]
[353145592,1739611849233,-500.0,0.00010958,2]
[353145593,1739611849243,-500.0,0.00010958,2]
[353145594,1739611849253,-500.0,0.00010958,2]
[353145595,1739611849264,-500.0,0.00010958,2]
[353145596,1739611849274,-500.0,0.00010958,2]
[353145597,1739611849284,-1676.44,0.00010958,2]
[353145598,1739611849294,-500.0,0.00010958,2]
[353145599,1739611849304,-500.0,0.00010958,2]
[353145600,1739611849314,-964.59,0.00010958,2]
[353145601,1739611849324,-500.0,0.00010958,2]
[353145602,1739611849334,-582.47291842,0.00010958,2]
[353145603,1739611849344,-1174.04,0.00010958,2]
[353145604,1739611849354,-509.85967177,0.00010958,2]
[353145605,1739611849364,-500.0,0.00010958,2]
[353145606,1739611849375,-500.0,0.00010958,2]
[353145607,1739611849387,-500.0,0.00010958,2]
[353145608,1739611849397,-500.0,0.00010958,2]
[353145609,1739611849408,-500.0,0.00010958,2]
[353145610,1739611849418,-500.0,0.00010958,2]
[353145611,1739611849427,-500.0,0.00010958,2]
[353145612,1739611849437,-500.0,0.00010958,2]
[353145613,1739611849446,-500.0,0.00010958,2]
[353145614,1739611849456,-728.47,0.00010958,2]
[353145615,1739611849467,-500.0,0.00010958,2]
[353145616,1739611849477,-703.23,0.00010958,2]
[353145617,1739611849488,-500.0,0.00010958,2]
[353145618,1739611849499,-500.0,0.00010958,2]
[353145619,1739611849509,-500.0,0.00010958,2]
[353145620,1739611849520,-1086.08,0.00010958,2]
[353145621,1739611849530,-500.0,0.00010958,2]
[353145622,1739611849540,-500.0,0.00010958,2]
[353145623,1739611849551,-516.68726602,0.00010958,2]
[353145624,1739611849560,-500.0,0.00010958,2]
[353145625,1739611849569,-361.95770795,0.00010958,2]
[353145626,1739611849582,-500.0,0.00010958,2]
[353145627,1739611849592,-500.0,0.00010958,2]
[353145628,1739611849602,-500.0,0.00010958,2]
[353145629,1739611849612,-500.0,0.00010958,2]
[353145630,1739611849623,-748.0,0.00010958,2]
[353145631,1739611849633,-957.02,0.00010958,2]
[353145632,1739611849643,-1604.66,0.00010958,2]
[353145633,1739611849652,-500.0,0.00010958,2]
[353145634,1739611849662,-704.0,0.00010958,2]
[353145635,1739611849673,-623.33,0.00010958,2]
[353145636,1739611849683,-500.0,0.00010958,2]
[353145637,1739611849693,-500.0,0.00010958,2]
[353145638,1739611849704,-500.0,0.00010958,2]
[353145639,1739611849714,-500.0,0.00010958,2]
[353145640,1739611849725,-500.0,0.00010958,2]
[353145641,1739611849735,-2157.01,0.00010958,2]
[353145642,1739611849746,-500.0,0.00010958,2]
[353145643,1739611849756,-150.0,0.00010958,2]
[353145644,1739611849766,-500.0,0.00010959,2]
[353145645,1739611849776,-2000.0,0.00010959,2]
[353145646,1739611849786,-500.0,0.00010959,2]
[353145647,1739611849796,-200.0,0.00010959,2]
[353145648,1739611849806,-200.0,0.00010959,2]
[353145649,1739611849816,-200.0,0.00010959,2]
[353145650,1739611849826,-151.0,0.00010959,2]
[353145651,1739611849836,-153.160132,0.00010959,2]
[353145652,1739611849846,-150.0,0.00010959,2]
[353145653,1739611849857,-163.65,0.00010959,2]
[353145654,1739611849867,-420.0,0.00010977,2]
[353145655,1739611849876,-940.23913306,0.00010986,2]
[353145656,1739611849887,-5844.60777426,0.00010997,2]
[353145657,1739611849897,-1962.9784203,0.00010999,2]
[353145658,1739611849907,-2082.15,0.00010999,2]
[353145659,1739611849916,-1062.59066125,0.00011,2]
[353145660,1739611849927,-30000.0,0.00011,4]
[353145661,1739611849937,-39367.63121177,0.00011,2]
[353145662,1739611849948,-151.0,0.00011,2]
[353145663,1739611849958,-482.5817,0.00011,2]
[353145664,1739611849969,-203.23823743,0.00011031,2]
[353145665,1739611849979,-300.0,0.00011039,2]
[353145666,1739611849990,-500.0,0.00011039,2]
[353145667,1739611850001,-500.0,0.00011039,2]
[353145668,1739611850012,-872.98,0.00011039,2]
[353145669,1739611850022,-1506.85,0.00011039,2]
[353145670,1739611850032,-300.0,0.0001104,2]
[353145671,1739611850042,-2082.15,0.0001104,2]
[353145672,1739611850051,-1356.16,0.0001104,2]
[353145673,1739611850061,-725.47,0.0001104,2]
[353145674,1739611850070,-725.47,0.0001104,2]
[353145675,1739611850080,-300.0,0.0001104,2]
[353145676,1739611850089,-300.0,0.0001104,2]
[353145677,1739611850099,-1804.0,0.00011041,2]
[353145678,1739611850108,-533.638194,0.00011041,2]
[353145679,1739611850118,-569.681091,0.00011041,2]
[353145680,1739611850128,-500.0,0.00011041,2]
[353145681,1739611850138,-500.0,0.00011041,2]
[353145682,1739611850147,-500.0,0.00011041,2]
[353145683,1739611850156,-500.0,0.00011041,2]
[353145684,1739611850167,-500.0,0.00011041,2]
[353145685,1739611850177,-589.4,0.00011041,2]
[353145686,1739611850186,-500.0,0.00011041,2]
[353145687,1739611850195,-500.0,0.00011041,2]
[353145688,1739611850206,-500.0,0.00011041,2]
[353145689,1739611850215,-500.0,0.00011041,2]
[353145690,1739611850225,-500.0,0.00011041,2]
[353145691,1739611850235,-500.0,0.00011041,2]
[353145692,1739611850247,-500.0,0.00011041,2]
[353145693,1739611850263,-500.0,0.00011041,2]
[353145694,1739611850278,-500.0,0.00011041,2]
[353145695,1739611850292,-500.0,0.00011041,2]
[353145696,1739611850304,-500.0,0.00011041,2]
[353145697,1739611850315,-500.0,0.00011041,2]
[353145698,1739611850327,-500.0,0.00011041,2]
[353145699,1739611850340,-500.0,0.00011041,2]
[353145700,1739611850352,-500.0,0.00011041,2]
[353145701,1739611850364,-500.0,0.00011041,2]
[353145702,1739611850377,-500.0,0.00011041,2]
[353145703,1739611850390,-500.0,0.00011041,2]
[353145704,1739611850403,-500.0,0.00011041,2]
[353145705,1739611850414,-500.0,0.00011041,2]
[353145706,1739611850426,-500.0,0.00011041,2]
[353145707,1739611850436,-500.0,0.00011041,2]
[353145708,1739611850447,-500.0,0.00011041,2]
[353145709,1739611850458,-500.0,0.00011041,2]
[353145710,1739611850470,-500.0,0.00011041,2]
[353145711,1739611850482,-500.0,0.00011041,2]
[353145712,1739611850494,-500.0,0.00011041,2]
[353145713,1739611850506,-500.0,0.00011041,2]
[353145714,1739611850517,-500.0,0.00011041,2]
[353145715,1739611850530,-500.0,0.00011041,2]
[353145716,1739611850544,-242.87518274,0.00011041,2]
[353145717,1739611850558,-500.0,0.00011041,2]
[353145718,1739611850570,-500.0,0.00011041,2]
[353145719,1739611850585,-500.0,0.00011041,2]
[353145720,1739611850597,-500.0,0.00011041,2]
[353145721,1739611850610,-500.0,0.00011041,2]
[353145722,1739611850623,-404.1829961,0.00011041,2]
[353145723,1739611850635,-500.0,0.00011041,2]
[353145724,1739611850647,-500.0,0.00011041,2]
[353145725,1739611850660,-500.0,0.00011041,2]
[353145726,1739611850674,-500.0,0.00011041,2]
[353145727,1739611850687,-505.98344318,0.00011041,2]
[353145728,1739611850699,-500.0,0.00011041,2]
[353145729,1739611850711,-500.0,0.00011041,2]
[353145730,1739611850722,-500.0,0.00011041,2]
[353145731,1739611850732,-500.0,0.00011041,2]
[353145732,1739611850743,-500.0,0.00011041,2]
[353145733,1739611850755,-500.0,0.00011041,2]
[353145734,1739611850767,-500.0,0.00011041,2]
[353145735,1739611850780,-500.0,0.00011041,2]
[353145736,1739611850792,-506.20773277,0.00011041,2]
[353145737,1739611850802,-500.0,0.00011041,2]
[353145738,1739611850813,-500.0,0.00011041,2]
[353145739,1739611850824,-500.0,0.00011041,2]
[353145740,1739611850835,-246.99798327,0.00011041,2]
[353145741,1739611850847,-500.0,0.00011041,2]
[353145742,1739611850861,-504.1117958,0.00011041,2]
[353145743,1739611850872,-500.0,0.00011041,2]
[353145744,1739611850883,-500.0,0.00011041,2]
[353145745,1739611850893,-500.0,0.00011041,2]
[353145746,1739611850905,-512.34,0.00011041,2]
[353145747,1739611850915,-500.0,0.00011041,2]
[353145748,1739611850926,-500.0,0.00011041,2]
[353145749,1739611850937,-500.0,0.00011041,2]
[353145750,1739611850948,-500.0,0.00011041,2]
[353145751,1739611850960,-500.0,0.00011041,2]
[353145752,1739611850971,-500.0,0.00011041,2]
[353145753,1739611850983,-500.0,0.00011041,2]
[353145754,1739611850994,-514.5738102,0.00011041,2]
[353145755,1739611851005,-500.0,0.00011041,2]
[353145756,1739611851015,-500.0,0.00011041,2]
[353145757,1739611851026,-500.0,0.00011041,2]
[353145758,1739611851038,-500.0,0.00011041,2]
[353145759,1739611851048,-500.0,0.00011041,2]
[353145760,1739611851059,-209.42234286,0.00011041,2]
[353145761,1739611851070,-500.0,0.00011041,2]